[Event "Late-Titled-Tuesday-Blitz-April-02-2024"]
[Site "Chess.com"]
[Date "2024.04.02"]
[Round "9"]
[White "Fh2411"]
[Black "Onthequiet"]
[Result "0-1"]
[WhiteElo "2554"]
[BlackElo "2443"]
[TimeControl "180+1"]
[EndTime "15:44:13 PDT"]
[Termination "Onthequiet won by resignation"]

1. d4 {[%clk 0:03:00.9]} 1... Nf6 {[%clk 0:02:57.6]} 2. Nf3 {[%clk 0:03:01.6]}
2... g6 {[%clk 0:02:56.8]} 3. c4 {[%clk 0:03:00.9]} 3... Bg7 {[%clk 0:02:57.2]}
4. Nc3 {[%clk 0:03:01.6]} 4... d6 {[%clk 0:02:57.7]} 5. Bg5 {[%clk 0:03:02]}
5... h6 {[%clk 0:02:57.4]} 6. Bh4 {[%clk 0:03:02]} 6... Nbd7 {[%clk 0:02:57.3]}
7. e3 {[%clk 0:03:01.9]} 7... c5 {[%clk 0:02:57.6]} 8. Be2 {[%clk 0:02:59.7]}
8... O-O {[%clk 0:02:57]} 9. O-O {[%clk 0:02:59.4]} 9... Re8 {[%clk 0:02:54.9]}
10. h3 {[%clk 0:02:56.1]} 10... b6 {[%clk 0:02:54.6]} 11. d5 {[%clk 0:02:19.9]}
11... g5 {[%clk 0:02:51.6]} 12. Bg3 {[%clk 0:02:18.9]} 12... Nf8 {[%clk
0:02:51.7]} 13. e4 {[%clk 0:02:15.1]} 13... N6d7 {[%clk 0:02:51.8]} 14. Nd2
{[%clk 0:01:49.8]} 14... Ng6 {[%clk 0:02:50.5]} 15. Bg4 {[%clk 0:01:31.3]} 15...
Nf4 {[%clk 0:02:48]} 16. Rb1 {[%clk 0:01:11.7]} 16... Nf8 {[%clk 0:02:46.6]} 17.
Ne2 {[%clk 0:01:10.2]} 17... N8g6 {[%clk 0:02:29.8]} 18. Bf5 {[%clk 0:00:53.1]}
18... Be5 {[%clk 0:02:20.4]} 19. Bxg6 {[%clk 0:00:48.7]} 19... fxg6 {[%clk
0:02:19.7]} 20. Nf3 {[%clk 0:00:43.9]} 20... Rf8 {[%clk 0:02:17.1]} 21. Nxe5
{[%clk 0:00:42.7]} 21... dxe5 {[%clk 0:02:18]} 22. f3 {[%clk 0:00:35.9]} 22...
Qd6 {[%clk 0:02:03]} 23. Nc3 {[%clk 0:00:30.5]} 23... Bd7 {[%clk 0:02:02.4]} 24.
a4 {[%clk 0:00:30]} 24... a6 {[%clk 0:01:53.6]} 25. Bf2 {[%clk 0:00:28.6]} 25...
h5 {[%clk 0:01:39]} 26. Qd2 {[%clk 0:00:20.6]} 26... Kh7 {[%clk 0:01:32.5]} 27.
Qe3 {[%clk 0:00:20.5]} 27... a5 {[%clk 0:01:30.8]} 28. b3 {[%clk 0:00:20.3]}
28... Rf7 {[%clk 0:01:28.6]} 29. Kh2 {[%clk 0:00:20.6]} 29... Raf8 {[%clk
0:01:28.7]} 30. h4 {[%clk 0:00:20.8]} 30... g4 {[%clk 0:01:21.1]} 31. fxg4
{[%clk 0:00:21]} 31... Bxg4 {[%clk 0:01:16.6]} 32. Bg3 {[%clk 0:00:21.3]} 32...
Qf6 {[%clk 0:00:59.5]} 33. Rf2 {[%clk 0:00:21.4]} 33... g5 {[%clk 0:00:59.5]}
34. hxg5 {[%clk 0:00:16.5]} 34... Qxg5 {[%clk 0:01:00.4]} 35. Rbf1 {[%clk
0:00:13.1]} 35... h4 {[%clk 0:01:00.1]} 36. Bxf4 {[%clk 0:00:13.6]} 36... Rxf4
{[%clk 0:01:00.9]} 37. Rxf4 {[%clk 0:00:12.3]} 37... Rxf4 {[%clk 0:01:01.3]} 38.
Rf2 {[%clk 0:00:09.7]} 38... Kg6 {[%clk 0:00:56.3]} 39. Nb5 {[%clk 0:00:09.7]}
39... Bd7 {[%clk 0:00:50.2]} 40. Nc3 {[%clk 0:00:08.1]} 40... Rxf2 {[%clk
0:00:25]} 41. Qxf2 {[%clk 0:00:09]} 41... Qf4+ {[%clk 0:00:25.5]} 42. Qxf4
{[%clk 0:00:06.6]} 42... exf4 {[%clk 0:00:26.4]} 43. Ne2 {[%clk 0:00:06.5]}
43... Kg5 {[%clk 0:00:26.5]} 44. Ng1 {[%clk 0:00:07.1]} 44... Bg4 {[%clk
0:00:22.5]} 45. Nf3+ {[%clk 0:00:06.4]} 45... Kh5 {[%clk 0:00:19.3]} 46. e5
{[%clk 0:00:06.8]} 46... Bxf3 {[%clk 0:00:13.6]} 47. gxf3 {[%clk 0:00:07.7]}
47... Kg6 {[%clk 0:00:14.5]} 48. d6 {[%clk 0:00:06.5]} 48... exd6 {[%clk
0:00:14.6]} 49. exd6 {[%clk 0:00:07.4]} 49... Kf7 {[%clk 0:00:15]} 50. Kh3
{[%clk 0:00:08]} 50... Ke6 {[%clk 0:00:15.4]} 51. Kxh4 {[%clk 0:00:08.7]} 51...
Kxd6 {[%clk 0:00:16.3]} 52. Kg4 {[%clk 0:00:08.1]} 52... Ke5 {[%clk 0:00:17.2]}
53. Kg5 {[%clk 0:00:08.7]} 53... Kd4 {[%clk 0:00:17.4]} 54. Kxf4 {[%clk
0:00:09.6]} 54... Kc3 {[%clk 0:00:18.3]} 55. Ke5 {[%clk 0:00:09.8]} 55... Kxb3
{[%clk 0:00:19.2]} 56. Kd5 {[%clk 0:00:10.3]} 56... Kxa4 {[%clk 0:00:19.1]} 57.
f4 {[%clk 0:00:11.2]} 57... Kb4 {[%clk 0:00:19.6]} 58. f5 {[%clk 0:00:12.1]}
58... a4 {[%clk 0:00:20.5]} 59. f6 {[%clk 0:00:13]} 59... a3 {[%clk 0:00:21.4]}
60. f7 {[%clk 0:00:13.9]} 60... a2 {[%clk 0:00:22.3]} 61. f8=Q {[%clk
0:00:14.8]} 61... a1=Q {[%clk 0:00:22.5]} 62. Qb8 {[%clk 0:00:14.1]} 62... Qd4+
{[%clk 0:00:22]} 63. Kc6 {[%clk 0:00:14.5]} 63... Qe4+ {[%clk 0:00:17.2]} 64.
Kxb6 {[%clk 0:00:12.1]} 64... Kxc4 {[%clk 0:00:17.1]} 65. Qg8+ {[%clk
0:00:11.3]} 65... Qd5 {[%clk 0:00:16]} 66. Qg4+ {[%clk 0:00:11.3]} 66... Qd4
{[%clk 0:00:15.8]} 67. Qe2+ {[%clk 0:00:12]} 67... Kc3 {[%clk 0:00:15.5]} 68.
Qe1+ {[%clk 0:00:11.7]} 68... Kc2 {[%clk 0:00:12.6]} 69. Qe2+ {[%clk 0:00:11.9]}
69... Kb3 {[%clk 0:00:11.6]} 70. Qb5+ {[%clk 0:00:11.7]} 70... Qb4 {[%clk
0:00:11.6]} 71. Kc6 {[%clk 0:00:06.6]} 71... Qxb5+ {[%clk 0:00:11.7]} 72. Kxb5
{[%clk 0:00:07.5]} 72... c4 {[%clk 0:00:12.6]} 0-1

[Event "Late-Titled-Tuesday-Blitz-April-02-2024"]
[Site "Chess.com"]
[Date "2024.04.02"]
[Round "9"]
[White "mightysmasher"]
[Black "RaugintaBulba"]
[Result "0-1"]
[WhiteElo "2556"]
[BlackElo "2437"]
[TimeControl "180+1"]
[EndTime "15:44:17 PDT"]
[Termination "RaugintaBulba won by checkmate"]

1. e4 {[%clk 0:03:00.9]} 1... c5 {[%clk 0:02:55.2]} 2. c3 {[%clk 0:03:00.6]}
2... e6 {[%clk 0:02:49.1]} 3. d4 {[%clk 0:02:59.7]} 3... cxd4 {[%clk 0:02:47.9]}
4. cxd4 {[%clk 0:02:59.7]} 4... Nf6 {[%clk 0:02:48.6]} 5. Nc3 {[%clk 0:02:59.1]}
5... b6 {[%clk 0:02:46.9]} 6. Bd3 {[%clk 0:02:59]} 6... Bb7 {[%clk 0:02:44.1]}
7. Nge2 {[%clk 0:02:59.3]} 7... Be7 {[%clk 0:02:41.2]} 8. O-O {[%clk 0:02:58.9]}
8... O-O {[%clk 0:02:40.2]} 9. f3 {[%clk 0:02:59.2]} 9... d6 {[%clk 0:02:36.8]}
10. Be3 {[%clk 0:02:58.7]} 10... Nbd7 {[%clk 0:02:36.8]} 11. Qd2 {[%clk
0:02:58.7]} 11... e5 {[%clk 0:02:36.7]} 12. Rfd1 {[%clk 0:02:57.6]} 12... Rc8
{[%clk 0:02:34.8]} 13. d5 {[%clk 0:02:56.6]} 13... Nc5 {[%clk 0:02:34.6]} 14.
Bc2 {[%clk 0:02:56.5]} 14... a5 {[%clk 0:02:34.1]} 15. Ng3 {[%clk 0:02:56.4]}
15... g6 {[%clk 0:02:31.6]} 16. h4 {[%clk 0:02:52.1]} 16... h5 {[%clk
0:02:28.9]} 17. Bh6 {[%clk 0:02:40.4]} 17... Re8 {[%clk 0:02:28.7]} 18. Bg5
{[%clk 0:02:39.6]} 18... Nfd7 {[%clk 0:02:25.1]} 19. Rac1 {[%clk 0:02:34.6]}
19... b5 {[%clk 0:02:09]} 20. Nxb5 {[%clk 0:02:27.6]} 20... Qb6 {[%clk
0:02:07.6]} 21. Kh2 {[%clk 0:02:16.6]} 21... Qxb5 {[%clk 0:02:06.7]} 22. Bxe7
{[%clk 0:02:16]} 22... Rxe7 {[%clk 0:02:06.3]} 23. Qg5 {[%clk 0:02:16.1]} 23...
Kf8 {[%clk 0:01:30.4]} 24. Qh6+ {[%clk 0:01:33.4]} 24... Ke8 {[%clk 0:01:30.6]}
25. Qh8+ {[%clk 0:01:33.1]} 25... Nf8 {[%clk 0:01:31.2]} 26. Qf6 {[%clk
0:01:31.3]} 26... Qb6 {[%clk 0:01:20.5]} 27. Qh8 {[%clk 0:01:26.2]} 27... Qd8
{[%clk 0:01:14.6]} 28. a3 {[%clk 0:01:16.6]} 28... Rec7 {[%clk 0:01:13.4]} 29.
b4 {[%clk 0:01:14.9]} 29... Qxh4+ {[%clk 0:01:12.9]} 30. Kg1 {[%clk 0:01:12.9]}
30... Qxg3 {[%clk 0:01:12.3]} 31. bxc5 {[%clk 0:01:08.9]} 31... Rxc5 {[%clk
0:01:11.7]} 32. Ba4+ {[%clk 0:01:08.1]} 32... Ke7 {[%clk 0:01:11.7]} 33. Rb1
{[%clk 0:01:07.5]} 33... R8c7 {[%clk 0:00:51.4]} 34. Qg7 {[%clk 0:00:58.4]}
34... h4 {[%clk 0:00:44.1]} 35. Qh6 {[%clk 0:00:54.3]} 35... Bc8 {[%clk
0:00:39.4]} 36. Bc6 {[%clk 0:00:46.1]} 36... h3 {[%clk 0:00:32.8]} 37. Rd2
{[%clk 0:00:43.5]} 37... Qf4 {[%clk 0:00:25.6]} 38. Qxf4 {[%clk 0:00:40.9]}
38... exf4 {[%clk 0:00:26.5]} 39. e5 {[%clk 0:00:39.5]} 39... Nd7 {[%clk
0:00:15.1]} 40. exd6+ {[%clk 0:00:34.9]} 40... Kxd6 {[%clk 0:00:16]} 41. Re1
{[%clk 0:00:30.6]} 41... Ne5 {[%clk 0:00:15.2]} 42. Rde2 {[%clk 0:00:29.5]}
42... Nxc6 {[%clk 0:00:14.8]} 43. dxc6 {[%clk 0:00:28.9]} 43... Kxc6 {[%clk
0:00:15.4]} 44. Re8 {[%clk 0:00:25.2]} 44... Be6 {[%clk 0:00:14.8]} 45. gxh3
{[%clk 0:00:24.5]} 45... Bxh3 {[%clk 0:00:13.8]} 46. Rd1 {[%clk 0:00:23.2]}
46... Be6 {[%clk 0:00:12.9]} 47. Ra8 {[%clk 0:00:21.6]} 47... Kb7 {[%clk
0:00:12.1]} 48. Rad8 {[%clk 0:00:20.2]} 48... Rc1 {[%clk 0:00:11.2]} 49. Kf2
{[%clk 0:00:19.9]} 49... R7c2+ {[%clk 0:00:10.1]} 50. Ke1 {[%clk 0:00:19.8]}
50... Rxd1+ {[%clk 0:00:08]} 51. Rxd1 {[%clk 0:00:18.1]} 51... Rc3 {[%clk
0:00:08.3]} 52. Rd4 {[%clk 0:00:15.7]} 52... Rxf3 {[%clk 0:00:07.7]} 53. Kd2
{[%clk 0:00:14.6]} 53... Rxa3 {[%clk 0:00:07.8]} 54. Rxf4 {[%clk 0:00:14.6]}
54... Ra2+ {[%clk 0:00:08.5]} 55. Kc3 {[%clk 0:00:14.4]} 55... Kb6 {[%clk
0:00:09.4]} 56. Rf1 {[%clk 0:00:12.5]} 56... Ra3+ {[%clk 0:00:09.7]} 57. Kb2
{[%clk 0:00:11.5]} 57... Rb3+ {[%clk 0:00:10.6]} 58. Ka1 {[%clk 0:00:11]} 58...
g5 {[%clk 0:00:10.9]} 59. Rg1 {[%clk 0:00:10.4]} 59... g4 {[%clk 0:00:10.5]} 60.
Rg2 {[%clk 0:00:07.1]} 60... g3 {[%clk 0:00:09.1]} 61. Rg1 {[%clk 0:00:06.8]}
61... f5 {[%clk 0:00:08.4]} 62. Rg2 {[%clk 0:00:05.8]} 62... f4 {[%clk
0:00:08.8]} 63. Rg1 {[%clk 0:00:06]} 63... f3 {[%clk 0:00:06.5]} 64. Re1 {[%clk
0:00:06.1]} 64... Bd5 {[%clk 0:00:04.1]} 65. Re8 {[%clk 0:00:01.9]} 65... Ra3+
{[%clk 0:00:04.5]} 66. Kb2 {[%clk 0:00:01.8]} 66... Ra2+ {[%clk 0:00:05.1]} 67.
Kc3 {[%clk 0:00:02]} 67... g2 {[%clk 0:00:05.5]} 68. Rb8+ {[%clk 0:00:02.3]}
68... Bb7 {[%clk 0:00:05.7]} 69. Rg8 {[%clk 0:00:03.2]} 69... Ra1 {[%clk
0:00:05.4]} 70. Rg6+ {[%clk 0:00:02.1]} 70... Ka7 {[%clk 0:00:05.1]} 71. Kd4
{[%clk 0:00:03]} 71... g1=Q+ {[%clk 0:00:05.3]} 72. Rxg1 {[%clk 0:00:03]} 72...
Rxg1 {[%clk 0:00:06.2]} 73. Ke3 {[%clk 0:00:03.6]} 73... Re1+ {[%clk 0:00:06.2]}
74. Kf2 {[%clk 0:00:04.5]} 74... Re2+ {[%clk 0:00:07.1]} 75. Kf1 {[%clk
0:00:04.8]} 75... a4 {[%clk 0:00:08]} 76. Kg1 {[%clk 0:00:04.8]} 76... a3 {[%clk
0:00:08.9]} 77. Kf1 {[%clk 0:00:05.4]} 77... a2 {[%clk 0:00:09.8]} 78. Kg1
{[%clk 0:00:06.3]} 78... a1=Q# {[%clk 0:00:10.7]} 0-1

[Event "Late-Titled-Tuesday-Blitz-April-02-2024"]
[Site "Chess.com"]
[Date "2024.04.02"]
[Round "9"]
[White "Sanyura"]
[Black "alexrustemov"]
[Result "0-1"]
[WhiteElo "2619"]
[BlackElo "2860"]
[TimeControl "180+1"]
[EndTime "15:44:21 PDT"]
[Termination "alexrustemov won by checkmate"]

1. e4 {[%clk 0:03:00.9]} 1... e6 {[%clk 0:03:00]} 2. d4 {[%clk 0:02:59.8]} 2...
d5 {[%clk 0:03:00.5]} 3. Nc3 {[%clk 0:02:58.2]} 3... dxe4 {[%clk 0:03:00.4]} 4.
Nxe4 {[%clk 0:02:58]} 4... Bd7 {[%clk 0:03:01]} 5. Bd3 {[%clk 0:02:55.4]} 5...
Bc6 {[%clk 0:03:00.8]} 6. Nf3 {[%clk 0:02:53.6]} 6... Nd7 {[%clk 0:03:01.3]} 7.
Qe2 {[%clk 0:02:52.6]} 7... Ngf6 {[%clk 0:03:01.6]} 8. Bg5 {[%clk 0:02:52.7]}
8... Be7 {[%clk 0:02:59.5]} 9. O-O {[%clk 0:02:39.5]} 9... Nxe4 {[%clk
0:02:55.3]} 10. Bxe7 {[%clk 0:02:39]} 10... Qxe7 {[%clk 0:02:54.8]} 11. Bxe4
{[%clk 0:02:39]} 11... Bxe4 {[%clk 0:02:55.1]} 12. Qxe4 {[%clk 0:02:39.9]} 12...
c6 {[%clk 0:02:55.3]} 13. c4 {[%clk 0:02:39.1]} 13... O-O {[%clk 0:02:54.7]} 14.
Rfe1 {[%clk 0:02:32.7]} 14... Rad8 {[%clk 0:02:48.2]} 15. a3 {[%clk 0:02:19.1]}
15... h6 {[%clk 0:02:44.8]} 16. b4 {[%clk 0:02:18.5]} 16... Rfe8 {[%clk
0:02:32.5]} 17. Rab1 {[%clk 0:02:15.5]} 17... a6 {[%clk 0:02:30.7]} 18. a4
{[%clk 0:02:15.1]} 18... Nf6 {[%clk 0:02:22.8]} 19. Qe2 {[%clk 0:02:10.9]} 19...
Qc7 {[%clk 0:02:16.4]} 20. b5 {[%clk 0:02:09.4]} 20... axb5 {[%clk 0:02:13.8]}
21. axb5 {[%clk 0:02:10.3]} 21... c5 {[%clk 0:02:13.1]} 22. b6 {[%clk
0:01:38.5]} 22... Qc6 {[%clk 0:02:02.5]} 23. Ne5 {[%clk 0:01:37.7]} 23... Qc8
{[%clk 0:02:02.5]} 24. dxc5 {[%clk 0:01:36.6]} 24... Qxc5 {[%clk 0:02:00.6]} 25.
Qf3 {[%clk 0:01:37]} 25... Rd2 {[%clk 0:01:40.4]} 26. Rb5 {[%clk 0:01:19.5]}
26... Qd4 {[%clk 0:01:32.4]} 27. Rf1 {[%clk 0:01:11.5]} 27... Re7 {[%clk
0:01:25.7]} 28. Nc6 {[%clk 0:01:02.3]} 28... bxc6 {[%clk 0:01:20.5]} 29. b7
{[%clk 0:01:02.3]} 29... Nd7 {[%clk 0:01:07.7]} 30. b8=Q+ {[%clk 0:00:26.9]}
30... Nxb8 {[%clk 0:01:07.3]} 31. Rxb8+ {[%clk 0:00:27.8]} 31... Kh7 {[%clk
0:01:07.3]} 32. Qxc6 {[%clk 0:00:22.1]} 32... Ra7 {[%clk 0:00:59.7]} 33. Qf3
{[%clk 0:00:04.6]} 33... Qxc4 {[%clk 0:00:38.3]} 34. Rbb1 {[%clk 0:00:04.4]}
34... Qd4 {[%clk 0:00:25.1]} 35. h3 {[%clk 0:00:03.8]} 35... f6 {[%clk
0:00:23.5]} 36. Rfe1 {[%clk 0:00:01.7]} 36... Raa2 {[%clk 0:00:22.1]} 37. Re3
{[%clk 0:00:01.7]} 37... Rxf2 {[%clk 0:00:19.8]} 38. Qxf2 {[%clk 0:00:02.2]}
38... Rxf2 {[%clk 0:00:19.1]} 39. Kxf2 {[%clk 0:00:03.1]} 39... f5 {[%clk
0:00:14.3]} 40. Ke2 {[%clk 0:00:02.4]} 40... e5 {[%clk 0:00:14.1]} 41. Rd1
{[%clk 0:00:02.2]} 41... Qc4+ {[%clk 0:00:13.5]} 42. Kf2 {[%clk 0:00:02.7]}
42... e4 {[%clk 0:00:13.3]} 43. Re2 {[%clk 0:00:02.4]} 43... Qc5+ {[%clk
0:00:12.9]} 44. Kf1 {[%clk 0:00:02.8]} 44... Kg6 {[%clk 0:00:12.5]} 45. Rde1
{[%clk 0:00:03.3]} 45... Kg5 {[%clk 0:00:12]} 46. Rf2 {[%clk 0:00:03.9]} 46...
g6 {[%clk 0:00:11.9]} 47. Rd1 {[%clk 0:00:03.9]} 47... h5 {[%clk 0:00:12.1]} 48.
Re1 {[%clk 0:00:04.2]} 48... h4 {[%clk 0:00:12.2]} 49. Rd1 {[%clk 0:00:04.1]}
49... Qc4+ {[%clk 0:00:11.8]} 50. Kg1 {[%clk 0:00:04]} 50... f4 {[%clk 0:00:11]}
51. Kh1 {[%clk 0:00:03.9]} 51... e3 {[%clk 0:00:07.8]} 52. Rf3 {[%clk
0:00:04.2]} 52... Kf5 {[%clk 0:00:05.1]} 53. Kg1 {[%clk 0:00:03.9]} 53... g5
{[%clk 0:00:05.1]} 54. Re1 {[%clk 0:00:04.1]} 54... Qe4 {[%clk 0:00:03.8]} 55.
Kh1 {[%clk 0:00:01.8]} 55... g4 {[%clk 0:00:03.9]} 56. hxg4+ {[%clk 0:00:01.9]}
56... Kxg4 {[%clk 0:00:04.8]} 57. Kh2 {[%clk 0:00:02.5]} 57... Qc2 {[%clk
0:00:04.4]} 58. Ref1 {[%clk 0:00:02.5]} 58... Qe4 {[%clk 0:00:03.8]} 59. Re1
{[%clk 0:00:03]} 59... Qe5 {[%clk 0:00:04]} 60. Ref1 {[%clk 0:00:03]} 60... Kf5
{[%clk 0:00:03.8]} 61. Kh3 {[%clk 0:00:02.4]} 61... Ke4 {[%clk 0:00:04.1]} 62.
Kh2 {[%clk 0:00:01.4]} 62... Qg5 {[%clk 0:00:04.1]} 63. Kg1 {[%clk 0:00:01.6]}
63... Qg4 {[%clk 0:00:04.4]} 64. Re1 {[%clk 0:00:02]} 64... Kd3 {[%clk
0:00:04.5]} 65. Rd1+ {[%clk 0:00:02.2]} 65... Ke2 {[%clk 0:00:04.5]} 66. Ra1
{[%clk 0:00:02.6]} 66... Kd2 {[%clk 0:00:04.2]} 67. Ra2+ {[%clk 0:00:02.8]}
67... Kc3 {[%clk 0:00:04.3]} 68. Ra1 {[%clk 0:00:03.2]} 68... Kc2 {[%clk
0:00:04.5]} 69. Ra2+ {[%clk 0:00:03]} 69... Kc3 {[%clk 0:00:04]} 70. Ra1 {[%clk
0:00:03.1]} 70... h3 {[%clk 0:00:04]} 71. Rxh3 {[%clk 0:00:02.6]} 71... Kd2
{[%clk 0:00:03.6]} 72. Rf3 {[%clk 0:00:03.1]} 72... e2 {[%clk 0:00:03.5]} 73.
Kf2 {[%clk 0:00:02]} 73... Qh4+ {[%clk 0:00:03.2]} 74. g3 {[%clk 0:00:02.1]}
74... Qh2# {[%clk 0:00:03.3]} 0-1

[Event "Late-Titled-Tuesday-Blitz-April-02-2024"]
[Site "Chess.com"]
[Date "2024.04.02"]
[Round "9"]
[White "Defend1r"]
[Black "nabukatnezarr"]
[Result "1/2-1/2"]
[WhiteElo "2653"]
[BlackElo "2636"]
[TimeControl "180+1"]
[EndTime "15:44:24 PDT"]
[Termination "Game drawn by repetition"]

1. e4 {[%clk 0:03:00.9]} 1... e5 {[%clk 0:02:58.6]} 2. Nf3 {[%clk 0:02:57.7]}
2... Nc6 {[%clk 0:02:59.2]} 3. Bc4 {[%clk 0:02:57.6]} 3... Nf6 {[%clk 0:02:59]}
4. d4 {[%clk 0:02:56.8]} 4... exd4 {[%clk 0:02:57.9]} 5. e5 {[%clk 0:02:57.7]}
5... d5 {[%clk 0:02:57.8]} 6. Bb5 {[%clk 0:02:56.6]} 6... Ne4 {[%clk 0:02:57]}
7. Nxd4 {[%clk 0:02:55.1]} 7... Bd7 {[%clk 0:02:57.3]} 8. Bxc6 {[%clk
0:02:53.1]} 8... bxc6 {[%clk 0:02:58.2]} 9. O-O {[%clk 0:02:51.9]} 9... Bc5
{[%clk 0:02:51.5]} 10. f3 {[%clk 0:02:47.8]} 10... Ng5 {[%clk 0:02:49.4]} 11.
Be3 {[%clk 0:02:48.3]} 11... Qe7 {[%clk 0:02:35.5]} 12. f4 {[%clk 0:02:47.2]}
12... Ne4 {[%clk 0:02:35]} 13. Nd2 {[%clk 0:02:33.3]} 13... Nxd2 {[%clk
0:02:16.5]} 14. Qxd2 {[%clk 0:02:34.2]} 14... Bb6 {[%clk 0:02:16.7]} 15. Nb3
{[%clk 0:02:33.6]} 15... O-O {[%clk 0:02:04]} 16. Qc3 {[%clk 0:02:32.3]} 16...
f6 {[%clk 0:01:52.6]} 17. Nc5 {[%clk 0:02:30.4]} 17... Bf5 {[%clk 0:01:47.5]}
18. Bd4 {[%clk 0:02:21.1]} 18... fxe5 {[%clk 0:01:35.1]} 19. fxe5 {[%clk
0:02:22]} 19... h6 {[%clk 0:01:28.4]} 20. b4 {[%clk 0:02:21.4]} 20... a5 {[%clk
0:01:12.9]} 21. a3 {[%clk 0:02:20.5]} 21... Kh7 {[%clk 0:01:11.6]} 22. Rae1
{[%clk 0:02:16.9]} 22... axb4 {[%clk 0:01:10.9]} 23. axb4 {[%clk 0:02:15.7]}
23... Ra2 {[%clk 0:01:06.3]} 24. Rf2 {[%clk 0:02:12.9]} 24... Bg6 {[%clk
0:01:04.2]} 25. Ref1 {[%clk 0:02:05.6]} 25... Rxf2 {[%clk 0:00:54.2]} 26. Rxf2
{[%clk 0:02:06.5]} 26... Bxc5 {[%clk 0:00:54]} 27. Bxc5 {[%clk 0:02:00.2]} 27...
Qe6 {[%clk 0:00:53.2]} 28. h3 {[%clk 0:01:57.5]} 28... Be4 {[%clk 0:00:51.9]}
29. Kh2 {[%clk 0:01:51.3]} 29... Qg6 {[%clk 0:00:49.6]} 30. Qg3 {[%clk 0:01:12]}
30... Rxc2 {[%clk 0:00:47.1]} 31. Qxg6+ {[%clk 0:01:08.5]} 31... Kxg6 {[%clk
0:00:48]} 32. Kg3 {[%clk 0:01:02.5]} 32... Rxf2 {[%clk 0:00:44.2]} 33. Kxf2
{[%clk 0:01:03.4]} 33... Kf5 {[%clk 0:00:37.1]} 34. Bd4 {[%clk 0:00:58.7]} 34...
h5 {[%clk 0:00:35.2]} 35. g3 {[%clk 0:00:56.5]} 35... g5 {[%clk 0:00:33.9]} 36.
Ke3 {[%clk 0:00:51.6]} 36... h4 {[%clk 0:00:30.8]} 37. g4+ {[%clk 0:00:45.1]}
37... Ke6 {[%clk 0:00:16.3]} 38. Kf2 {[%clk 0:00:45.5]} 38... Bc2 {[%clk
0:00:07.8]} 39. Be3 {[%clk 0:00:45.1]} 39... Kxe5 {[%clk 0:00:08.7]} 40. Bxg5
{[%clk 0:00:45.1]} 40... d4 {[%clk 0:00:09.6]} 41. Bxh4 {[%clk 0:00:44.8]} 41...
Kf4 {[%clk 0:00:08.9]} 42. Bf6 {[%clk 0:00:42.6]} 42... d3 {[%clk 0:00:04.4]}
43. Bc3 {[%clk 0:00:43]} 43... Ke4 {[%clk 0:00:02.7]} 44. Bd2 {[%clk 0:00:43.4]}
44... Bd1 {[%clk 0:00:03.2]} 45. Kg3 {[%clk 0:00:41.9]} 45... Kd4 {[%clk
0:00:03]} 46. h4 {[%clk 0:00:42]} 46... Ke4 {[%clk 0:00:02.9]} 47. h5 {[%clk
0:00:42]} 47... Ke5 {[%clk 0:00:03.1]} 48. Bc3+ {[%clk 0:00:37.4]} 48... Ke6
{[%clk 0:00:01.2]} 49. h6 {[%clk 0:00:38]} 49... Bc2 {[%clk 0:00:01.9]} 50. Kf4
{[%clk 0:00:29.4]} 50... d2 {[%clk 0:00:02.3]} 51. Bxd2 {[%clk 0:00:29]} 51...
Kf7 {[%clk 0:00:03.1]} 52. Bc3 {[%clk 0:00:28.1]} 52... Kg8 {[%clk 0:00:03.6]}
53. Be5 {[%clk 0:00:27.6]} 53... Kh7 {[%clk 0:00:04.5]} 54. Kg5 {[%clk
0:00:27.1]} 54... Bg6 {[%clk 0:00:05.2]} 55. Bxc7 {[%clk 0:00:26.7]} 55... Bb1
{[%clk 0:00:06]} 56. Bf4 {[%clk 0:00:26.1]} 56... Bc2 {[%clk 0:00:06.9]} 57. Kf6
{[%clk 0:00:26]} 57... Bb1 {[%clk 0:00:07.8]} 58. Ke5 {[%clk 0:00:26]} 58... Bc2
{[%clk 0:00:08.7]} 59. Kd4 {[%clk 0:00:25.6]} 59... Bb1 {[%clk 0:00:09.3]} 60.
Kc5 {[%clk 0:00:26.3]} 60... Be4 {[%clk 0:00:09.7]} 61. Kd6 {[%clk 0:00:26.1]}
61... Kg6 {[%clk 0:00:10.2]} 62. g5 {[%clk 0:00:24.1]} 62... Kh7 {[%clk
0:00:10.4]} 63. Be5 {[%clk 0:00:23.2]} 63... Kg6 {[%clk 0:00:09.6]} 64. Bf6
{[%clk 0:00:21.4]} 64... Kh7 {[%clk 0:00:10]} 65. Ke5 {[%clk 0:00:20.9]} 65...
Bc2 {[%clk 0:00:10.1]} 66. Kd4 {[%clk 0:00:20.7]} 66... Kg6 {[%clk 0:00:10.3]}
67. Kc3 {[%clk 0:00:19]} 67... Be4 {[%clk 0:00:10.9]} 68. Kc4 {[%clk 0:00:18.6]}
68... Bb1 {[%clk 0:00:11.2]} 69. Kd4 {[%clk 0:00:16]} 69... Kh7 {[%clk
0:00:10.8]} 70. Ke3 {[%clk 0:00:16.9]} 70... Kg6 {[%clk 0:00:11.3]} 71. Kf4
{[%clk 0:00:17.8]} 71... Bc2 {[%clk 0:00:11.6]} 72. Ke5 {[%clk 0:00:18.7]} 72...
Kh7 {[%clk 0:00:11.8]} 73. Ke6 {[%clk 0:00:19.6]} 73... Kg6 {[%clk 0:00:12.1]}
74. Ke7 {[%clk 0:00:19.7]} 74... Kh7 {[%clk 0:00:10.8]} 75. Kf8 {[%clk
0:00:19.9]} 75... Bd3 {[%clk 0:00:11.3]} 76. Be7 {[%clk 0:00:20.3]} 76... Bc2
{[%clk 0:00:11.6]} 77. Bf6 {[%clk 0:00:21.2]} 77... Bd3 {[%clk 0:00:12.2]} 78.
b5 {[%clk 0:00:22.1]} 78... cxb5 {[%clk 0:00:11.8]} 79. Ke7 {[%clk 0:00:21.8]}
79... b4 {[%clk 0:00:12.2]} 80. Kd6 {[%clk 0:00:22.4]} 80... b3 {[%clk 0:00:13]}
81. Bb2 {[%clk 0:00:21.9]} 81... Bc2 {[%clk 0:00:13.9]} 82. Bc1 {[%clk
0:00:21.3]} 82... Kg6 {[%clk 0:00:14.8]} 83. Kd5 {[%clk 0:00:21.5]} 83... Kh7
{[%clk 0:00:15.1]} 84. Kc4 {[%clk 0:00:21.4]} 84... Kg6 {[%clk 0:00:14.7]} 85.
Kc3 {[%clk 0:00:22.1]} 85... Kh7 {[%clk 0:00:15]} 86. Kd4 {[%clk 0:00:22.7]}
86... Kg6 {[%clk 0:00:15.5]} 87. Ke5 {[%clk 0:00:23.3]} 87... b2 {[%clk
0:00:15.7]} 88. Bxb2 {[%clk 0:00:20.9]} 88... Kxg5 {[%clk 0:00:16.1]} 89. Bc1+
{[%clk 0:00:21.6]} 89... Kg6 {[%clk 0:00:16]} 90. Kd4 {[%clk 0:00:22.5]} 90...
Kh7 {[%clk 0:00:16.6]} 91. Ke5 {[%clk 0:00:23]} 91... Bg6 {[%clk 0:00:17.2]} 92.
Kf6 {[%clk 0:00:21.5]} 92... Bb1 {[%clk 0:00:18.1]} 93. Kf7 {[%clk 0:00:22.3]}
93... Bc2 {[%clk 0:00:18.5]} 94. Ke6 {[%clk 0:00:23.2]} 94... Bb1 {[%clk
0:00:18.9]} 95. Kf7 {[%clk 0:00:24.1]} 95... Bc2 {[%clk 0:00:19.6]} 96. Ke6
{[%clk 0:00:25]} 96... Bb1 {[%clk 0:00:20.5]} 97. Kf7 {[%clk 0:00:25.9]} 1/2-1/2